bitfinex/quotes_BTCUSD_20251001
["timestamp","ask_amount","ask_price","bid_price","bid_amount"]
[1759352245498,0.88899507,117600.0,117590.0,3.04500556]
[1759352248472,0.88899494,117600.0,117590.0,2.87492307]
[1759352249587,0.88899494,117600.0,117590.0,3.04500556]
[1759352249789,0.88899494,117600.0,117590.0,2.87492307]
[1759352250539,0.87304221,117600.0,117590.0,3.04500556]
[1759352250762,0.88899418,117600.0,117590.0,3.04500556]
[1759352252153,0.88899418,117600.0,117590.0,2.87492307]
[1759352255398,0.88775418,117600.0,117590.0,2.87492307]
[1759352255603,0.88899418,117600.0,117590.0,2.87492307]
[1759352256388,0.88775418,117600.0,117590.0,2.87492307]
[1759352256793,0.88564418,117600.0,117590.0,3.04999556]
[1759352257127,0.88564418,117600.0,117590.0,2.87991307]
[1759352257328,0.88564329,117600.0,117590.0,2.87991307]
[1759352257533,0.88774329,117600.0,117590.0,2.87689307]
[1759352257707,0.88774329,117600.0,117590.0,2.87492307]
[1759352258926,0.88774329,117600.0,117590.0,2.87689307]
[1759352259327,0.88774329,117600.0,117590.0,2.87492307]
[1759352260579,0.88774329,117600.0,117590.0,2.87689307]
[1759352260806,0.88774329,117600.0,117590.0,2.87991307]
[1759352261013,0.88774329,117600.0,117590.0,2.87492307]
[1759352261650,0.88564329,117600.0,117590.0,2.87991307]
[1759352261852,0.88774329,117600.0,117590.0,2.87689307]
[1759352262065,0.88774329,117600.0,117590.0,2.87492307]
[1759352262700,0.88564329,117600.0,117590.0,2.87991307]
[1759352263039,0.88774329,117600.0,117590.0,2.87492307]
[1759352265311,0.87179175,117600.0,117590.0,2.87492307]
[1759352266251,0.86969175,117600.0,117590.0,2.87991307]
[1759352267080,0.87167175,117600.0,117590.0,2.87991307]
[1759352267298,0.88762325,117600.0,117590.0,2.87492307]
[1759352268675,0.88762325,117600.0,117590.0,2.87689307]
[1759352268924,0.69958373,117600.0,117590.0,3.13870703]
[1759352269138,0.86965175,117600.0,117590.0,3.37918703]
[1759352269353,0.86167598,117600.0,117590.0,3.37918703]
[1759352270417,0.86167598,117600.0,117590.0,3.29047556]
[1759352271268,0.62119598,117600.0,117590.0,3.29047556]
[1759352272066,0.62916848,117600.0,117590.0,3.29047556]
[1759352279119,0.62916848,117600.0,117590.0,3.06852079]
[1759352279685,0.62916792,117600.0,117590.0,3.06852079]
[1759352281508,0.62119598,117600.0,117590.0,3.06852079]
[1759352282465,0.62119598,117600.0,117590.0,2.8984383]
[1759352283834,0.62916796,117600.0,117590.0,2.8984383]
[1759352287305,0.63114749,117600.0,117590.0,2.6579583]
[1759352287622,0.63114749,117600.0,117590.0,2.8934483]
[1759352288030,0.64709085,117600.0,117590.0,2.8954683]
[1759352288667,0.64709085,117600.0,117590.0,2.8985383]
[1759352289001,0.63114749,117600.0,117590.0,2.8985383]
[1759352290152,0.62916749,117600.0,117590.0,2.8985383]
[1759352291512,0.63114749,117600.0,117590.0,2.8934483]
[1759352291850,0.63114749,117600.0,117590.0,2.8954683]
[1759352293422,0.63114749,117600.0,117590.0,2.8985383]
[1759352293619,0.62916749,117600.0,117590.0,2.8985383]
[1759352294094,0.62916749,117600.0,117590.0,2.6580583]
[1759352294908,0.62916548,117600.0,117590.0,2.6580583]
[1759352300554,0.86964548,117600.0,117590.0,2.8985383]
[1759352305750,0.86163598,117600.0,117590.0,2.8985383]
[1759352307371,0.86163598,117600.0,117590.0,3.06862079]
[1759352311529,0.02601796,117600.0,117590.0,3.07957091]
[1759352311741,0.00046562,117600.0,117590.0,3.07957091]
[1759352318737,0.00046562,117600.0,117590.0,3.10511772]
[1759352330836,0.00046562,117600.0,117590.0,3.19022772]
[1759352331855,0.00046562,117600.0,117590.0,3.19862643]
[1759352335780,0.00046562,117600.0,117590.0,3.19022772]
[1759352336599,0.00046562,117600.0,117590.0,3.18919182]
[1759352340204,0.00046562,117600.0,117590.0,3.27819182]
[1759352343725,0.00046562,117600.0,117590.0,3.06814219]
[1759352347647,0.00046562,117600.0,117590.0,3.17814219]
[1759352351665,0.00046562,117600.0,117590.0,3.20829409]
[1759352355911,0.00046562,117600.0,117590.0,3.47159409]
[1759352361148,0.00046562,117600.0,117590.0,3.45404409]
[1759352370316,1e-08,117610.0,117600.0,0.54021992]
[1759352370485,0.006921,117630.0,117620.0,0.1700391]
[1759352370697,0.00696754,117630.0,117620.0,0.5869091]
[1759352370945,0.00696754,117630.0,117620.0,0.5898491]
[1759352371080,0.00696754,117630.0,117620.0,0.58952796]
[1759352371288,0.00739952,117630.0,117620.0,0.58952796]
[1759352371495,0.00739952,117630.0,117620.0,0.67396844]
[1759352371851,0.00739952,117630.0,117620.0,0.6737452]
[1759352373782,0.00739952,117630.0,117620.0,0.73782871]
[1759352375276,0.00739952,117630.0,117620.0,0.74644839]
[1759352383118,0.00739952,117630.0,117620.0,0.66188277]
[1759352383508,0.00739952,117630.0,117620.0,0.65326309]
[1759352384422,0.00739952,117630.0,117620.0,0.66164667]
[1759352385828,0.00739952,117630.0,117620.0,0.66183939]
[1759352386554,0.00739952,117630.0,117620.0,0.65326309]
[1759352386762,0.00739952,117630.0,117620.0,0.66175504]
[1759352387980,0.00739952,117630.0,117620.0,0.65326309]
[1759352392625,0.00739952,117630.0,117620.0,0.65306309]
[1759352393498,0.00739952,117630.0,117620.0,0.32362309]
[1759352393750,0.00739952,117630.0,117620.0,0.65298309]
[1759352398900,0.00739952,117630.0,117620.0,0.65250137]
[1759352402969,0.00739952,117630.0,117620.0,0.57654452]
[1759352403181,0.00739952,117630.0,117620.0,0.56806089]
[1759352410930,0.00739952,117630.0,117620.0,0.48058089]
[1759352411150,0.00739952,117630.0,117620.0,0.56902089]
[1759352414477,0.00739952,117630.0,117620.0,0.23870089]
[1759352414704,0.00739952,117630.0,117620.0,0.63964953]
[1759352417468,0.00739952,117630.0,117620.0,0.30932953]
[1759352417707,0.00739952,117630.0,117620.0,0.63952953]
[1759352418680,0.00739952,117630.0,117620.0,0.66506695]
[1759352418977,0.00739952,117630.0,117620.0,0.63952953]
[1759352422592,0.00739952,117630.0,117620.0,0.63996953]
[1759352423893,0.34,117650.0,117640.0,2.58654368]
[1759352424102,0.34198,117650.0,117640.0,2.90001534]
[1759352426481,0.35063073,117650.0,117640.0,2.90001534]
[1759352429454,0.35063073,117650.0,117640.0,2.90216534]
[1759352429661,0.3510626,117650.0,117640.0,2.90216534]
[1759352430633,0.3510626,117650.0,117640.0,2.89989534]
[1759352430843,0.3510626,117650.0,117640.0,2.90204534]
[1759352431259,0.37660002,117650.0,117640.0,2.90523534]
[1759352431436,0.37660002,117650.0,117640.0,2.90204534]
[1759352433215,0.37660002,117650.0,117640.0,2.90523534]
[1759352442629,0.37660002,117650.0,117640.0,2.66315534]
[1759352442827,0.37660002,117650.0,117640.0,2.90491534]
[1759352443862,0.37462002,117650.0,117640.0,2.90491534]
[1759352444400,0.37660002,117650.0,117640.0,2.90491534]
[1759352444788,0.37462002,117650.0,117640.0,2.90491534]
[1759352452164,0.37462002,117650.0,117640.0,2.67881301]
[1759352456377,0.36596929,117650.0,117640.0,2.67881301]
[1759352457372,0.34043187,117650.0,117640.0,2.67881301]
[1759352457948,0.34043187,117650.0,117640.0,2.43705301]
[1759352458148,0.34043187,117650.0,117640.0,2.67853301]
[1759352461496,0.34043187,117650.0,117640.0,2.68725856]
[1759352462359,0.00043187,117650.0,117640.0,2.68725856]
[1759352464745,0.00043187,117650.0,117640.0,2.77236856]
[1759352468708,0.00043187,117650.0,117640.0,3.03566856]
[1759352470724,0.00043187,117650.0,117640.0,3.06120048]
[1759352473229,0.02959879,117680.0,117670.0,0.16996685]
[1759352473615,0.00420605,117680.0,117670.0,0.42703697]
[1759352478433,0.00420605,117680.0,117670.0,0.49064704]
[1759352478850,0.00485364,117680.0,117670.0,0.49064704]
[1759352485464,0.00485364,117680.0,117670.0,0.24948704]
[1759352485669,0.00683364,117680.0,117670.0,0.57586704]
[1759352485872,0.00485364,117680.0,117670.0,0.57879704]
[1759352502091,0.00485364,117680.0,117670.0,0.24943704]
[1759352502305,0.00683364,117680.0,117670.0,0.57574704]
[1759352502728,0.00485364,117680.0,117670.0,0.57867704]
[1759352517317,0.00867364,117680.0,117670.0,0.24452704]
[1759352517569,0.00867364,117680.0,117670.0,0.47425692]
[1759352517770,0.00867364,117680.0,117670.0,0.56265692]
[1759352518859,0.00683364,117680.0,117670.0,0.47429692]
[1759352519045,0.00683364,117680.0,117670.0,0.56269692]
[1759352520398,0.51862605,117680.0,117670.0,0.16996685]
[1759352520617,0.51862605,117680.0,117670.0,0.41068685]
[1759352521516,0.51862605,117680.0,117670.0,0.16996685]
[1759352521716,0.51862605,117680.0,117670.0,0.41064685]
[1759352524310,0.51862605,117680.0,117670.0,0.16996685]
[1759352524520,0.51862605,117680.0,117670.0,0.24068]
[1759352524723,0.60373605,117680.0,117670.0,0.24068]
[1759352524922,0.62926888,117680.0,117670.0,0.24068]
[1759352525924,0.50996685,117670.0,117660.0,0.1699813]
[1759352526123,0.51378685,117670.0,117660.0,0.4106613]
[1759352526557,0.51378685,117670.0,117660.0,0.24068]
[1759352527215,0.51378685,117670.0,117650.0,0.23344478]
[1759352527428,0.51194685,117670.0,117660.0,0.24068]
[1759352527764,0.51194685,117670.0,117660.0,0.4106613]
[1759352527922,0.51378685,117670.0,117660.0,0.4106613]
[1759352528338,0.51378685,117670.0,117660.0,0.24068]
[1759352528867,0.50999575,117650.0,117640.0,0.1700102]
[1759352529094,0.51197575,117650.0,117640.0,0.45391261]
[1759352529305,0.51197575,117650.0,117640.0,0.04322241]
[1759352529512,0.51197575,117650.0,117640.0,0.4106902]
[1759352529888,0.52033009,117650.0,117640.0,0.4106902]
[1759352530089,0.00198,117650.0,117640.0,0.4106902]
[1759352530632,0.17197575,117650.0,117640.0,0.4106902]
[1759352530774,0.00198,117650.0,117640.0,0.4127502]
[1759352530970,0.00198,117650.0,117640.0,0.48659065]
[1759352531585,0.17197575,117650.0,117640.0,0.48659065]
[1759352533259,0.00198,117650.0,117640.0,0.48659065]
[1759352533691,0.17197575,117650.0,117640.0,0.48659065]
[1759352534174,0.18055182,117650.0,117640.0,0.48659065]
[1759352534397,0.18055182,117650.0,117640.0,0.4127502]
[1759352534615,0.18055182,117650.0,117640.0,0.1720702]
[1759352534753,0.18055182,117650.0,117640.0,0.4127502]
[1759352538151,0.18055182,117650.0,117640.0,0.4127902]
[1759352540192,0.52055182,117650.0,117640.0,0.1720702]
[1759352540401,0.52055182,117650.0,117640.0,0.4107302]
[1759352541228,0.52055182,117650.0,117640.0,0.48437265]
[1759352541640,0.35055607,117650.0,117640.0,0.48645265]
[1759352542469,0.35055607,117650.0,117640.0,2.67480365]
[1759352543411,0.35055607,117650.0,117640.0,2.67688365]
[1759352544292,0.35055607,117650.0,117640.0,2.67999365]
[1759352545942,0.34857607,117650.0,117640.0,2.67999365]
[1759352552534,0.51857182,117650.0,117640.0,2.67999365]
[1759352552848,0.52054182,117650.0,117640.0,2.67688365]
[1759352553305,0.51857182,117650.0,117640.0,2.67999365]
[1759352562450,0.51857182,117650.0,117640.0,2.47826571]
[1759352562657,0.51857182,117650.0,117640.0,2.64827591]
[1759352564530,0.34857607,117650.0,117640.0,2.64827591]
[1759352565082,0.51857182,117650.0,117640.0,2.64827591]
[1759352567028,0.51857182,117650.0,117640.0,2.43927365]
[1759352567230,0.51857182,117650.0,117640.0,2.67995365]
[1759352570333,0.52054182,117650.0,117640.0,2.67995365]
[1759352571873,0.51857182,117650.0,117640.0,2.67995365]
[1759352578281,0.51857182,117650.0,117640.0,2.6063112]
[1759352579060,0.51857182,117650.0,117640.0,2.3656312]
[1759352579197,0.51857182,117650.0,117640.0,2.6063112]
[1759352581038,0.34857607,117650.0,117640.0,2.6063112]
[1759352582101,0.52055182,117650.0,117640.0,2.6011212]
[1759352582432,0.60750182,117650.0,117640.0,2.190431]
[1759352582564,0.60750182,117650.0,117640.0,2.431111]
[1759352582764,0.63304107,117650.0,117640.0,2.431111]
[1759352582989,0.87372107,117650.0,117640.0,2.431111]
[1759352585622,0.87372107,117650.0,117640.0,2.190431]
[1759352586093,0.88168581,117650.0,117640.0,2.190431]
[1759352586341,0.87372107,117650.0,117640.0,2.190431]
[1759352592735,0.87372107,117650.0,117640.0,1.97315309]
[1759352594942,0.88167669,117650.0,117640.0,1.97315309]
[1759352595327,0.87372107,117650.0,117640.0,1.97315309]
[1759352603395,0.88167725,117650.0,117640.0,1.97315309]
[1759352605223,0.8816779,117650.0,117640.0,1.97315309]
[1759352607619,0.8798379,117650.0,117640.0,1.97315309]
[1759352608394,0.88168162,117650.0,117640.0,1.97315309]
[1759352608600,0.8816818,117650.0,117640.0,1.97315309]
[1759352611284,0.8798418,117650.0,117640.0,1.97315309]
[1759352611515,0.8816818,117650.0,117640.0,1.97315309]
[1759352612330,0.89761937,117650.0,117640.0,1.97315309]
[1759352613132,0.89761945,117650.0,117640.0,1.97315309]
[1759352618890,0.89577945,117650.0,117640.0,1.97315309]
[1759352619343,0.89754702,117650.0,117640.0,1.97315309]
[1759352621839,0.89755789,117650.0,117640.0,1.97315309]
[1759352622441,0.89571789,117650.0,117640.0,1.97315309]
[1759352622873,0.89755789,117650.0,117640.0,1.97315309]
[1759352623314,0.89571789,117650.0,117640.0,1.97315309]
[1759352623936,0.89755789,117650.0,117640.0,1.97315309]
[1759352624541,0.89571789,117650.0,117640.0,1.97512309]
[1759352624897,0.89571789,117650.0,117640.0,1.97315309]
[1759352625328,0.89755789,117650.0,117640.0,1.97315309]
[1759352625931,0.89571789,117650.0,117640.0,1.97315309]
[1759352626309,0.89755789,117650.0,117640.0,1.97315309]
[1759352628305,0.89571789,117650.0,117640.0,1.97512309]
[1759352628508,0.89571789,117650.0,117640.0,1.97805309]
[1759352628990,0.89571789,117650.0,117640.0,1.97315309]
[1759352629223,0.89571789,117650.0,117640.0,1.97512309]
[1759352629579,0.89571789,117650.0,117640.0,1.97315309]
[1759352629776,0.89571789,117650.0,117640.0,1.97512309]
[1759352629981,0.89571789,117650.0,117640.0,1.97805309]
[1759352630259,0.89571789,117650.0,117640.0,1.97512309]
[1759352630805,0.89571789,117650.0,117640.0,1.97315309]
[1759352633034,0.89755789,117650.0,117640.0,1.97315309]
[1759352633264,0.89571789,117650.0,117640.0,1.97315309]
[1759352637808,0.89571789,117650.0,117640.0,1.97524309]
[1759352638326,0.89571789,117650.0,117640.0,1.97315309]
[1759352640930,0.89571789,117650.0,117640.0,1.97524309]
[1759352641130,0.89571789,117650.0,117640.0,1.97315309]
[1759352641763,0.89373789,117650.0,117640.0,1.97524309]
[1759352641953,0.89373789,117650.0,117640.0,1.97849309]
[1759352642773,0.89373789,117650.0,117640.0,2.00752288]
[1759352643118,0.89373789,117650.0,117640.0,1.97849309]
[1759352644940,0.65305789,117650.0,117640.0,2.14850329]
[1759352645140,0.89365789,117650.0,117640.0,2.14850329]
[1759352645516,0.87772024,117650.0,117640.0,2.14850329]
[1759352647303,0.87772024,117650.0,117640.0,2.38910329]
[1759352647917,0.87772024,117650.0,117640.0,2.43060986]
[1759352648118,0.86974864,117650.0,117640.0,2.43060986]
[1759352648448,0.86974864,117650.0,117640.0,2.38910329]
[1759352656229,0.69975289,117650.0,117640.0,2.38910329]
[1759352656602,0.03404289,117650.0,117640.0,2.38910329]
[1759352656963,0.37404289,117650.0,117640.0,2.38910329]
[1759352657265,0.03404289,117650.0,117640.0,2.38910329]
[1759352657464,0.37404289,117650.0,117640.0,2.47781476]
[1759352658033,0.36553925,117650.0,117640.0,2.47781476]
[1759352659188,0.34,117650.0,117640.0,2.47781476]
[1759352667492,0.02575134,117660.0,117650.0,0.16999575]
[1759352667694,0.0002159,117660.0,117650.0,0.41377575]
[1759352667922,0.0002159,117660.0,117650.0,0.41576575]
[1759352668127,0.0002159,117660.0,117650.0,0.50447722]
[1759352669056,0.0002159,117660.0,117650.0,0.41576575]
[1759352672264,0.00861243,117660.0,117650.0,0.41576575]
[1759352674657,0.51859373,117660.0,117650.0,0.41576575]
[1759352675308,0.51859373,117660.0,117650.0,0.36449166]
[1759352675911,0.34861243,117660.0,117650.0,0.36449166]
[1759352676139,0.34861243,117660.0,117650.0,0.45320313]
[1759352678094,0.51859373,117660.0,117650.0,0.45320313]
[1759352678653,0.51859373,117660.0,117650.0,0.36449166]
[1759352684221,0.51855373,117660.0,117650.0,0.36449166]
[1759352689770,0.52051373,117660.0,117650.0,0.41302575]
[1759352690376,0.51855373,117660.0,117650.0,0.41624575]
[1759352698701,0.50999575,117650.0,117640.0,2.14316329]
[1759352698939,0.51215575,117650.0,117640.0,2.21407309]
[1759352699179,0.51200049,117650.0,117640.0,2.21411309]
[1759352699421,0.53753793,117650.0,117640.0,2.21411309]
[1759352700317,0.53753793,117650.0,117640.0,2.21618309]
[1759352700537,0.53753793,117650.0,117640.0,2.38928329]
[1759352701178,0.53753793,117650.0,117640.0,1.97522309]
[1759352701406,0.53753793,117650.0,117640.0,2.21682309]
[1759352701825,0.53753793,117650.0,117640.0,2.21991309]
[1759352702047,0.53753793,117650.0,117640.0,2.21682309]
[1759352702494,0.9462451,117650.0,117640.0,1.97315309]
[1759352702713,0.9462451,117650.0,117640.0,2.21479309]
[1759352702714,0.86595793,117650.0,117640.0,2.21479309]
[1759352702928,0.86428793,117650.0,117640.0,2.21479309]
[1759352703709,0.86428793,117650.0,117640.0,2.21686309]
[1759352703938,0.86428793,117650.0,117640.0,2.21995309]
[1759352704145,0.86428793,117650.0,117640.0,2.21479309]
[1759352704341,0.86428793,117650.0,117640.0,2.21686309]
[1759352708153,0.86212793,117650.0,117640.0,2.47558476]
[1759352708403,0.86212793,117650.0,117640.0,2.38996329]
[1759352710250,0.62048793,117650.0,117640.0,2.38996329]
[1759352718811,0.62048793,117650.0,117640.0,2.21995309]
[1759352719047,0.62048793,117650.0,117640.0,2.38996329]
[1759352720585,0.62048793,117650.0,117640.0,2.21995309]
[1759352723679,0.62246793,117650.0,117640.0,2.21995309]
[1759352723882,0.62246793,117650.0,117640.0,2.21686309]
[1759352726195,0.62246793,117650.0,117640.0,2.21463309]
[1759352728878,0.63043748,117650.0,117640.0,2.21463309]
[1759352730995,0.63043748,117650.0,117640.0,2.21667309]
[1759352731680,0.63043701,117650.0,117640.0,2.21667309]
[1759352733263,0.63043701,117650.0,117640.0,2.21968309]
[1759352733634,0.63043701,117650.0,117640.0,2.21667309]
[1759352735864,0.63043633,117650.0,117640.0,2.21667309]
[1759352737092,0.63043633,117650.0,117640.0,2.21463309]
[1759352737732,0.63043633,117650.0,117640.0,2.21667309]
[1759352738342,0.63043633,117650.0,117640.0,2.21463309]
[1759352738850,0.63043633,117650.0,117640.0,2.21667309]
[1759352739280,0.63043633,117650.0,117640.0,2.21968309]
[1759352739480,0.63043633,117650.0,117640.0,2.21952309]
[1759352740187,0.63043633,117650.0,117640.0,2.21651309]
[1759352743316,0.63043633,117650.0,117640.0,2.21447309]
[1759352743829,0.63043633,117650.0,117640.0,2.21651309]
[1759352744559,0.63043633,117650.0,117640.0,1.97519309]
[1759352744737,0.63227633,117650.0,117640.0,2.21467309]
[1759352745750,0.63043633,117650.0,117640.0,2.21467309]
[1759352748325,0.63043633,117650.0,117640.0,2.21417209]
[1759352748928,0.63043633,117650.0,117640.0,2.21421209]
[1759352754144,0.63043633,117650.0,117640.0,2.21627209]
[1759352754351,0.62845633,117650.0,117640.0,2.21921209]
[1759352755150,0.63043633,117650.0,117640.0,2.21627209]
[1759352759006,0.63043633,117650.0,117640.0,2.21921209]
[1759352759262,0.63043633,117650.0,117640.0,2.38922229]
[1759352760592,0.62845633,117650.0,117640.0,2.47793376]
[1759352761545,0.62048793,117650.0,117640.0,2.47793376]
[1759352761717,0.6284587,117650.0,117640.0,2.38922229]
[1759352764951,0.62048793,117650.0,117640.0,2.38922229]
[1759352766600,0.62064319,117650.0,117640.0,2.38922229]
[1759352768974,0.62064319,117650.0,117640.0,2.38898229]
[1759352775035,0.45064744,117650.0,117640.0,2.38898229]
[1759352775237,0.62064319,117650.0,117640.0,2.38898229]
[1759352776452,0.62262319,117650.0,117640.0,2.38898229]
[1759352776806,0.62064319,117650.0,117640.0,2.38898229]
[1759352787776,0.62064319,117650.0,117640.0,2.47769376]
[1759352787978,0.62064319,117650.0,117640.0,2.38898229]
[1759352792591,0.62064319,117650.0,117640.0,2.19758552]
[1759352792772,0.86168319,117650.0,117640.0,2.19758552]
[1759352805091,0.69168744,117650.0,117640.0,2.19758552]
[1759352805319,0.36553744,117650.0,117640.0,2.28629699]
[1759352805976,0.02553744,117650.0,117640.0,2.28629699]
[1759352806394,0.0001759,117660.0,117650.0,0.16999575]
[1759352806615,0.02571217,117660.0,117650.0,0.43207532]
[1759352806852,0.02571217,117660.0,117650.0,0.41715575]
[1759352811734,0.02571217,117660.0,117650.0,0.17507575]
[1759352815250,0.19569347,117660.0,117650.0,0.17507575]
[1759352816098,0.02571217,117660.0,117650.0,0.17507575]
[1759352816306,0.19569347,117660.0,117650.0,0.17507575]
[1759352817680,0.02571217,117660.0,117650.0,0.17507575]
[1759352817816,0.19569347,117660.0,117650.0,0.17507575]
[1759352818871,0.02571217,117660.0,117650.0,0.17507575]
[1759352819919,0.19569347,117660.0,117650.0,0.17507575]
[1759352823217,0.19767347,117660.0,117650.0,0.17207575]
[1759352823759,0.19569347,117660.0,117650.0,0.17527575]
[1759352824941,0.02571217,117660.0,117650.0,0.17527575]
[1759352825443,0.19569347,117660.0,117650.0,0.17527575]
[1759352845189,0.19548647,117660.0,117650.0,0.17527575]
[1759352847768,0.19548647,117660.0,117650.0,0.17506875]
[1759352848776,0.19762647,117660.0,117650.0,0.17506875]
[1759352849601,0.19548647,117660.0,117650.0,0.17506875]
[1759352852801,0.19762647,117660.0,117650.0,0.17186875]
[1759352853991,0.19762647,117660.0,117650.0,0.17508875]
[1759352855399,0.19548647,117660.0,117650.0,0.17508875]
[1759352858314,0.16999575,117650.0,117640.0,2.2145641]
[1759352858552,0.16999575,117650.0,117640.0,2.4583441]
[1759352858731,0.41159575,117650.0,117640.0,2.2199241]
[1759352858896,0.2416,117650.0,117640.0,2.2199241]
[1759352859099,0.26713755,117650.0,117640.0,2.2199241]
[1759352860911,0.26713755,117650.0,117640.0,1.9566241]
[1759352861764,0.26713755,117650.0,117640.0,2.04533557]
[1759352862377,0.26713755,117650.0,117640.0,1.9566241]
[1759352875932,0.26713755,117650.0,117640.0,2.1980641]
[1759352878687,0.26713755,117650.0,117640.0,2.1978581]
[1759352883603,0.26713755,117650.0,117640.0,1.9564181]
[1759352884810,0.2416,117650.0,117640.0,1.9564181]
[1759352885093,0.241394,117650.0,117640.0,2.04512957]
[1759352885776,0.26693155,117650.0,117640.0,2.04512957]
[1759352886112,0.241394,117650.0,117640.0,2.04512957]
[1759352887762,0.241394,117650.0,117640.0,2.28632957]
[1759352888171,0.241394,117650.0,117640.0,2.1976181]
[1759352888920,0.241188,117650.0,117640.0,2.1976181]
[1759352889980,0.241188,117650.0,117640.0,1.9564181]
[1759352894856,0.241188,117650.0,117640.0,1.74257012]
[1759352899829,0.26672555,117650.0,117640.0,1.74257012]
[1759352900929,0.26643255,117650.0,117640.0,1.74257012]
[1759352904644,0.26643255,117650.0,117640.0,1.74227712]
[1759352906050,0.4364283,117650.0,117640.0,1.74227712]
[1759352906382,0.26643255,117650.0,117640.0,1.74227712]
[1759352907500,0.4364283,117650.0,117640.0,1.74227712]
[1759352909186,0.4364283,117650.0,117640.0,0.17536878]
[1759352909971,0.4385283,117650.0,117640.0,0.17214878]
[1759352910172,0.4385283,117650.0,117640.0,0.17000878]
[1759352910389,0.1700102,117640.0,117630.0,0.26702926]
[1759352910595,0.1721102,117640.0,117630.0,0.43411391]
[1759352910797,0.1721102,117640.0,117630.0,0.26408926]
[1759352910798,0.2572202,117640.0,117630.0,0.26408926]
[1759352911008,0.28469297,117640.0,117630.0,0.00078926]
[1759352913673,0.37313297,117640.0,117630.0,0.00078926]
[1759352915474,0.41686198,117640.0,117630.0,0.00078926]
[1759352915909,0.37313297,117640.0,117630.0,0.00078926]
[1759352919182,0.17002465,117630.0,117610.0,0.14480421]
[1759352919390,0.41130465,117630.0,117620.0,0.1729789]
[1759352919615,0.41130465,117630.0,117620.0,0.1751289]
[1759352920003,0.43684742,117630.0,117620.0,0.1751289]
[1759352920397,0.43684742,117630.0,117620.0,0.17556086]
[1759352921956,0.43684742,117630.0,117620.0,0.17526786]
[1759352923435,0.44517241,117630.0,117620.0,0.17526786]
[1759352925359,0.44517241,117630.0,117620.0,0.00522896]
[1759352927411,0.44727241,117630.0,117620.0,0.00522896]
[1759352930776,0.44727241,117630.0,117620.0,0.00258196]
[1759352937212,0.44727241,117630.0,117620.0,0.00043196]
[1759352937776,0.44727241,117630.0,117620.0,0.00245196]
[1759352938651,0.45027241,117630.0,117610.0,0.33480232]
[1759352939003,0.45027241,117630.0,117610.0,0.34330499]
[1759352939274,0.42472964,117630.0,117610.0,0.34330499]
[1759352939517,0.02554277,117620.0,117610.0,0.34330499]
[1759352940296,0.02554277,117620.0,117610.0,0.34554103]
[1759352940438,0.19558187,117620.0,117610.0,0.34554103]
[1759352940633,0.19558187,117620.0,117610.0,0.34876103]
[1759352942550,0.02554277,117620.0,117610.0,0.34876103]
[1759352947576,0.19763187,117620.0,117610.0,0.18076652]
[1759352947780,0.19763187,117620.0,117610.0,0.42188652]
[1759352949143,0.19763187,117620.0,117610.0,0.42510652]
[1759352949699,0.02759277,117620.0,117610.0,0.42510652]
[1759352950537,0.02554277,117620.0,117610.0,0.42510652]
[1759352950924,0.19558187,117620.0,117610.0,0.42510652]
[1759352957649,0.19558187,117620.0,117610.0,0.41660385]
[1759352958687,0.19499787,117620.0,117610.0,0.41660385]
[1759352959749,0.19499787,117620.0,117610.0,0.48836982]
[1759352959971,0.1700391,117620.0,117610.0,0.48836982]
[1759352961732,0.1720891,117620.0,117610.0,0.48514982]
[1759352961973,0.1720891,117620.0,117610.0,0.48837982]
[1759352962594,0.1720891,117620.0,117610.0,0.41661385]
[1759352964091,0.1720891,117620.0,117610.0,0.24335604]
[1759352964294,0.1752791,117620.0,117610.0,0.00021604]
[1759352964498,0.1752791,117620.0,117610.0,0.24129604]
[1759352972518,0.1752791,117620.0,117610.0,0.00021604]
[1759352972727,0.2983944,117620.0,117610.0,0.00021604]
[1759352973357,0.32394039,117620.0,117610.0,0.00021604]
[1759352974825,0.32394039,117620.0,117600.0,0.15036]
[1759352974826,0.17006802,117600.0,117590.0,0.24132]
[1759352975009,0.17006802,117600.0,117590.0,0.5067497]
[1759352975421,0.17217802,117600.0,117590.0,0.00256186]
[1759352975564,0.17536802,117600.0,117590.0,0.24185186]
[1759352976025,0.17536802,117600.0,117590.0,0.24384186]
[1759352978336,0.17536802,117600.0,117590.0,0.24185186]
[1759352978688,0.17536802,117600.0,117590.0,0.24384186]
[1759352978898,0.17217802,117600.0,117590.0,0.24384186]
[1759352979989,0.17217802,117600.0,117590.0,0.00256186]
[1759352980192,0.17217802,117600.0,117590.0,0.24384186]
[1759352981058,0.17006802,117600.0,117590.0,0.24384186]
[1759352981267,0.17217802,117600.0,117590.0,0.24384186]
[1759352983057,0.17217802,117600.0,117590.0,0.41392435]
[1759352983429,0.17217802,117600.0,117590.0,0.24384186]
[1759352984027,0.17217802,117600.0,117590.0,0.41392435]
[1759352988371,0.17217802,117600.0,117590.0,0.17264435]
[1759352988601,0.17217802,117600.0,117590.0,0.41396435]
[1759352990318,0.17006802,117600.0,117590.0,0.41396435]
[1759352990537,0.17217802,117600.0,117590.0,0.41396435]
[1759352991598,0.17006802,117600.0,117590.0,0.41396435]
[1759352991931,0.17221802,117600.0,117590.0,0.41396435]
[1759353019350,0.17530802,117600.0,117590.0,0.41396435]
[1759353025188,0.17530802,117600.0,117590.0,0.3446837]
[1759353036078,0.17530802,117600.0,117590.0,0.17460121]
[1759353041684,0.17008249,117590.0,117580.0,0.10743777]
[1759353041938,0.17502249,117590.0,117580.0,0.41168257]
[1759353042629,0.30655786,117590.0,117580.0,0.00046562]
[1759353043046,0.33211055,117590.0,117580.0,0.00046562]
[1759353046547,0.28568518,117590.0,117580.0,0.00046562]
[1759353047358,0.28568518,117590.0,117580.0,0.00068173]
[1759353062341,0.52186518,117590.0,117580.0,0.00100173]
[1759353066522,0.28074518,117590.0,117580.0,0.17109868]
[1759353066725,0.52186518,117590.0,117580.0,0.17129868]
[1759353067066,0.52186518,117590.0,117580.0,0.00100173]
[1759353067537,0.52186518,117590.0,117580.0,0.17109868]
[1759353068304,0.28074518,117590.0,117580.0,0.17109868]
[1759353068515,0.28074518,117590.0,117580.0,0.17129868]
[1759353069119,0.28074518,117590.0,117580.0,0.17109868]
[1759353077733,0.28282518,117590.0,117580.0,0.17109868]
[1759353077933,0.28601518,117590.0,117580.0,0.17109868]
[1759353078163,0.28282518,117590.0,117580.0,0.17109868]
[1759353078651,0.28601518,117590.0,117580.0,0.17109868]
[1759353079212,0.28074518,117590.0,117580.0,0.17109868]
[1759353080323,0.28601518,117590.0,117580.0,0.17109868]
[1759353080626,0.28282518,117590.0,117580.0,0.17109868]
[1759353080829,0.28074518,117590.0,117580.0,0.17109868]
[1759353083660,0.28272518,117590.0,117580.0,0.17109868]
[1759353084250,0.28074518,117590.0,117580.0,0.17109868]
[1759353084623,0.52182518,117590.0,117580.0,0.17109868]
[1759353084936,0.52693518,117590.0,117580.0,0.17109868]
[1759353085138,0.52380518,117590.0,117580.0,0.17109868]
[1759353085334,0.52182518,117590.0,117580.0,0.17109868]
[1759353085718,0.52693518,117590.0,117580.0,0.17109868]
[1759353085919,0.52380518,117590.0,117580.0,0.17109868]
[1759353086272,0.52182518,117590.0,117580.0,0.17109868]